fUSD/lending_fUSD_20250320
["ID","MTS","AMOUNT","RATE_DAILY","PERIOD"]
[356464810,1742493040317,-545.07867009,0.00048999,120]
[356464811,1742493040330,-85.85362991,0.00048999,120]
[356464812,1742493040339,-500.0,0.00048999,120]
[356464813,1742493040348,-500.0,0.00048999,120]
[356464814,1742493040358,-208.76637009,0.00048999,120]
[356464815,1742493040373,-291.23362991,0.00048999,120]
[356464816,1742493040382,-500.0,0.00048999,120]
[356464817,1742493040391,-500.0,0.00048999,120]
[356464818,1742493040400,-500.0,0.00048999,120]
[356464819,1742493040409,-500.0,0.00048999,120]
[356464820,1742493040419,-471.71611445,0.00048999,2]
[356464821,1742493040429,-500.0,0.00048999,120]
[356464822,1742493040438,-500.0,0.00048999,120]
[356464823,1742493040448,-500.0,0.00048999,120]
[356464824,1742493040457,-500.0,0.00048999,120]
[356464825,1742493040466,-500.0,0.00048999,120]
[356464826,1742493040475,-500.0,0.00048999,120]
[356464827,1742493040484,-200.61459899,0.00048999,120]
[356464828,1742493040493,-262.9514315,0.00048999,120]
[356464829,1742493040502,-500.0,0.00048999,120]
[356464830,1742493040512,-500.0,0.00048999,120]
[356464831,1742493040526,-500.0,0.00048999,120]
[356464832,1742493040535,-1000.0,0.00048999,120]
[356464833,1742493040544,-500.0,0.00048999,120]
[356464834,1742493040553,-1600.66,0.00048999,120]
[356464835,1742493040562,-500.0,0.00048999,120]
[356464836,1742493040572,-572.20561068,0.00048999,120]
[356464842,1742493040707,-1598.9,0.00048999,120]
[356464844,1742493040722,-278178.73881989,0.00049,120]
[356464846,1742493040734,-71821.26118011,0.00049,120]
[356464848,1742493040743,-155.73536437,0.00049,28]
[356464850,1742493040753,-200.24,0.000491,2]
[356464852,1742493040762,-200.24,0.00049201,2]
[356464854,1742493040772,-11402.8780726,0.00049263,4]
[356464856,1742493040782,-626.58,0.00049272,120]
[356464858,1742493040791,-500.0,0.00049273,120]
[356464860,1742493040801,-915.73,0.00049273,120]
[356464862,1742493040811,-500.0,0.00049273,120]
[356464864,1742493040820,-187.7,0.00049273,120]
[356464866,1742493040830,-500.0,0.00049273,120]
[356464868,1742493040839,-500.19879994,0.00049273,120]
[356464870,1742493040848,-636.61210813,0.00049273,120]
[356464872,1742493040857,-500.0,0.00049273,120]
[356464874,1742493040866,-715.32,0.00049273,7]
[356464876,1742493040875,-500.0,0.00049273,120]
[356464878,1742493040885,-392.5,0.00049273,120]
[356464880,1742493040894,-500.0,0.00049273,120]
[356464882,1742493040903,-504.06,0.00049273,120]
[356464884,1742493040913,-500.0,0.00049273,120]
[356464886,1742493040924,-500.0,0.00049273,120]
[356464888,1742493040933,-500.0,0.00049273,120]
[356464890,1742493040944,-500.0,0.00049273,120]
[356464892,1742493040953,-1572.28,0.00049273,120]
[356464894,1742493040962,-500.59,0.00049273,120]
[356464896,1742493040972,-500.0,0.00049273,120]
[356464898,1742493040981,-828.35,0.00049273,120]
[356464900,1742493040991,-500.0,0.00049273,120]
[356464902,1742493041000,-882.57,0.00049273,120]
[356464904,1742493041009,-500.000001,0.00049273,120]
[356464906,1742493041018,-500.0,0.00049273,120]
[356464908,1742493041027,-500.0,0.00049273,120]
[356464910,1742493041036,-500.0,0.00049273,120]
[356464912,1742493041046,-500.0,0.00049273,120]
[356464914,1742493041055,-509.77389058,0.00049273,120]
[356464916,1742493041065,-579.11,0.00049273,120]
[356464918,1742493041074,-1250.0,0.00049273,120]
[356464920,1742493041084,-500.0,0.00049273,120]
[356464922,1742493041093,-749.43,0.00049273,120]
[356464924,1742493041102,-565.39,0.00049273,120]
[356464926,1742493041111,-641.58,0.00049273,120]
[356464928,1742493041121,-524.34,0.00049273,120]
[356464930,1742493041130,-395.18768033,0.00049273,120]
[356464932,1742493041139,-500.0,0.00049273,120]
[356464934,1742493041148,-500.0,0.00049273,120]
[356464936,1742493041158,-500.0,0.00049273,120]
[356464938,1742493041167,-500.0,0.00049273,120]
[356464940,1742493041178,-611.99999958,0.00049273,120]
[356464942,1742493041187,-215.1715495,0.00049273,120]
[356464944,1742493041196,-1000.0,0.00049273,120]
[356464946,1742493041205,-1600.66,0.00049273,120]
[356464948,1742493041215,-500.0,0.00049273,120]
[356464950,1742493041225,-1598.9,0.00049273,120]
[356464952,1742493041234,-200.24,0.00049303,2]
[356464954,1742493041243,-200.24,0.00049405,2]
[356464956,1742493041252,-5701.43903629,0.0004948,4]
[356464958,1742493041261,-500.0,0.00049489,120]
[356464960,1742493041270,-500.0,0.00049489,120]
[356464962,1742493041279,-500.0,0.00049489,120]
[356464964,1742493041288,-131133.097835,0.0004949,4]
[356464966,1742493041298,-16241.4774969,0.0004949,4]
[356464968,1742493041307,-800.0,0.00049499,120]
[356464970,1742493041317,-500.0,0.00049499,120]
[356464971,1742493041326,-500.0,0.00049499,120]
[356464973,1742493041335,-2584.0,0.000495,7]
[356464975,1742493041345,-500000.0,0.000495,120]
[356464978,1742493041354,-500.0,0.000495,120]
[356464980,1742493041364,-200.24,0.00049507,2]
[356464981,1742493041374,-1160.10553549,0.00049537,4]
[356464984,1742493041383,-626.58,0.00049546,120]
[356464986,1742493041393,-500.0,0.00049547,120]
[356464987,1742493041402,-915.73,0.00049547,120]
[356464989,1742493041411,-157.09,0.00049547,120]
[356464991,1742493041422,-500.0,0.00049547,120]
[356464993,1742493041431,-500.0,0.00049547,120]
[356464995,1742493041440,-715.32,0.00049547,7]
[356464997,1742493041450,-500.0,0.00049547,120]
[356464999,1742493041460,-500.0,0.00049547,120]
[356465001,1742493041469,-500.0,0.00049547,120]
[356465003,1742493041479,-500.0,0.00049547,120]
[356465005,1742493041488,-500.0,0.00049547,120]
[356465007,1742493041498,-180.65,0.00049547,120]
[356465009,1742493041507,-1572.28,0.00049547,120]
[356465011,1742493041517,-500.59,0.00049547,120]
[356465013,1742493041529,-500.0,0.00049547,120]
[356465016,1742493041539,-828.35,0.00049547,120]
[356465017,1742493041549,-500.0,0.00049547,120]
[356465019,1742493041559,-882.57,0.00049547,120]
[356465021,1742493041568,-500.0,0.00049547,120]
[356465023,1742493041577,-500.0,0.00049547,120]
[356465025,1742493041587,-261.82,0.00049547,120]
[356465027,1742493041597,-579.11,0.00049547,120]
[356465029,1742493041607,-1250.0,0.00049547,120]
[356465031,1742493041617,-749.43,0.00049547,120]
[356465033,1742493041626,-641.58,0.00049547,120]
[356465035,1742493041636,-500.0,0.00049547,120]
[356465037,1742493041645,-500.0,0.00049547,120]
[356465039,1742493041654,-1000.0,0.00049547,120]
[356465041,1742493041663,-1600.66,0.00049547,120]
[356465043,1742493041675,-260.43804332,0.00049547,120]
[356465045,1742493041685,-1598.9,0.00049547,120]
[356465047,1742493041694,-200.24,0.00049609,2]
[356465049,1742493041703,-200.24,0.00049711,2]
[356465051,1742493041712,-500.0,0.00049763,120]
[356465053,1742493041721,-500.0,0.00049763,120]
[356465055,1742493041730,-1160.10553549,0.00049811,4]
[356465057,1742493041739,-200.24,0.00049813,2]
[356465059,1742493041748,-626.58,0.0004982,120]
[356465061,1742493041758,-500.0,0.00049821,120]
[356465063,1742493041768,-915.73,0.00049821,120]
[356465065,1742493041777,-500.0,0.00049821,120]
[356465066,1742493041787,-500.0,0.00049821,120]
[356465068,1742493041796,-715.32,0.00049821,7]
[356465070,1742493041806,-500.0,0.00049821,120]
[356465072,1742493041815,-500.0,0.00049821,120]
[356465074,1742493041825,-500.0,0.00049821,120]
[356465077,1742493041834,-1572.28,0.00049821,120]
[356465079,1742493041844,-500.59,0.00049821,120]
[356465081,1742493041854,-500.0,0.00049821,120]
[356465083,1742493041863,-828.35,0.00049821,120]
[356465084,1742493041872,-500.0,0.00049821,120]
[356465086,1742493041881,-882.57,0.00049821,120]
[356465088,1742493041891,-500.03342327,0.00049821,120]
[356465090,1742493041900,-579.11,0.00049821,120]
[356465093,1742493041910,-1250.0,0.00049821,120]
[356465094,1742493041919,-749.43,0.00049821,120]
[356465097,1742493041928,-641.58,0.00049821,120]
[356465099,1742493041938,-500.0,0.00049821,120]
[356465100,1742493041947,-500.0,0.00049821,120]
[356465103,1742493041957,-1000.0,0.00049821,120]
[356465104,1742493041967,-1600.66,0.00049821,120]
[356465106,1742493041978,-1598.9,0.00049821,120]
[356465109,1742493041988,-3480.31660647,0.0004989,4]
[356465110,1742493041998,-500.0,0.00049899,120]
[356465113,1742493042008,-189.99872994,0.000499,38]
[356465115,1742493042017,-607.2275,0.000499,10]
[356465117,1742493042026,-88888.0,0.000499,120]
[356465119,1742493042038,-200.24,0.00049915,2]
[356465121,1742493042048,-2320.21107098,0.0004999,4]
[356465123,1742493042058,-1160.10553549,0.0004999,4]
[356465125,1742493042067,-151.0,0.00049999,120]
[356465127,1742493042077,-500.0,0.00049999,120]
[356465129,1742493042086,-500.0,0.00049999,120]
[356465131,1742493042096,-50000.0,0.0005,50]
[356465133,1742493042105,-500000.0,0.0005,120]
[356465135,1742493042114,-151.0,0.0005,120]
[356465137,1742493042123,-175.0,0.0005,120]
[356465139,1742493042132,-183.167872,0.0005,120]
[356465141,1742493042141,-200.24,0.00050016,2]
[356465143,1742493042150,-500.0,0.00050037,120]
[356465145,1742493042159,-500.0,0.00050037,120]
[356465147,1742493042168,-800.0,0.00050047,120]
[356465149,1742493042178,-626.58,0.00050094,120]
[356465151,1742493042188,-500.0,0.00050095,120]
[356465153,1742493042196,-915.73,0.00050095,120]
[356465155,1742493042206,-500.0,0.00050095,120]
[356465157,1742493042215,-500.0,0.00050095,120]
[356465159,1742493042224,-715.32,0.00050095,7]
[356465161,1742493042233,-500.0,0.00050095,120]
[356465163,1742493042242,-500.0,0.00050095,120]
[356465165,1742493042251,-500.0,0.00050095,120]
[356465167,1742493042260,-1572.28,0.00050095,120]
[356465168,1742493042270,-500.59,0.00050095,120]
[356465169,1742493042279,-500.0,0.00050095,120]
[356465170,1742493042289,-828.35,0.00050095,120]
[356465171,1742493042298,-500.0,0.00050095,120]
[356465172,1742493042307,-882.57,0.00050095,120]
[356465173,1742493042316,-579.11,0.00050095,120]
[356465174,1742493042325,-1250.0,0.00050095,120]
[356465175,1742493042334,-749.43,0.00050095,120]
[356465176,1742493042342,-641.58,0.00050095,120]
[356465177,1742493042351,-500.0,0.00050095,120]
[356465178,1742493042360,-500.0,0.00050095,120]
[356465179,1742493042369,-1000.0,0.00050095,120]
[356465180,1742493042378,-1600.66,0.00050095,120]
[356465181,1742493042387,-1598.9,0.00050095,120]
[356465182,1742493042397,-200.24,0.00050118,2]
[356465183,1742493042406,-200.24,0.0005022,2]
[356465184,1742493042415,-168.15,0.00050259,2]
[356465185,1742493042424,-503.20768511,0.00050311,120]
[356465186,1742493042433,-500.0,0.00050311,120]
[356465187,1742493042442,-200.24,0.00050322,2]
[356465188,1742493042451,-626.58,0.00050368,120]
[356465189,1742493042460,-915.73,0.00050369,120]
[356465190,1742493042469,-500.0,0.00050369,120]
[356465191,1742493042480,-500.0,0.00050369,120]
[356465192,1742493042490,-715.32,0.00050369,7]
[356465193,1742493042499,-500.0,0.00050369,120]
[356465194,1742493042508,-500.0,0.00050369,120]
[356465195,1742493042519,-496.5956048,0.00050369,120]
[356465196,1742493042530,-1572.28,0.00050369,120]
[356465198,1742493042539,-500.59,0.00050369,120]
[356465199,1742493042548,-500.0,0.00050369,120]
[356465200,1742493042558,-828.35,0.00050369,120]
[356465201,1742493042568,-500.0,0.00050369,120]
[356465202,1742493042577,-882.57,0.00050369,120]
[356465203,1742493042586,-579.11,0.00050369,120]
[356465204,1742493042596,-1250.0,0.00050369,120]
[356465205,1742493042605,-749.43,0.00050369,120]
[356465206,1742493042615,-641.58,0.00050369,120]
[356465207,1742493042624,-500.0,0.00050369,120]
[356465209,1742493042633,-500.0,0.00050369,120]
[356465211,1742493042642,-1000.0,0.00050369,120]
[356465214,1742493042651,-1600.66,0.00050369,120]
[356465216,1742493042660,-1598.9,0.00050369,120]
[356465217,1742493042669,-500.0,0.00050585,120]
[356465218,1742493042679,-800.0,0.00050595,120]
[356465219,1742493042688,-626.58,0.00050642,120]
[356465220,1742493042698,-915.73,0.00050643,120]
[356465221,1742493042707,-500.0,0.00050643,120]
[356465222,1742493042716,-500.0,0.00050643,120]
[356465223,1742493042725,-715.32,0.00050643,7]
[356465224,1742493042733,-500.0,0.00050643,120]
[356465226,1742493042743,-500.0,0.00050643,120]
[356465228,1742493042753,-1572.28,0.00050643,120]
[356465230,1742493042761,-500.59,0.00050643,120]
[356465232,1742493042771,-640.87680448,0.00050643,120]
[356465234,1742493042780,-828.35,0.00050643,120]
[356465235,1742493042789,-882.57,0.00050643,120]
[356465236,1742493042798,-579.11,0.00050643,120]
[356465237,1742493042807,-1250.0,0.00050643,120]
[356465239,1742493042817,-749.43,0.00050643,120]
[356465240,1742493042827,-641.58,0.00050643,120]
[356465241,1742493042838,-585.33180694,0.00050643,120]
[356465242,1742493042849,-500.0,0.00050643,120]
[356465243,1742493042860,-1000.0,0.00050643,120]
[356465244,1742493042869,-1600.66,0.00050643,120]
[356465245,1742493042878,-1598.9,0.00050643,120]
[356465246,1742493042887,-232.7,0.00050643,2]
[356465247,1742493042896,-781.0,0.000508,120]
[356465248,1742493042905,-500.0,0.00050859,120]
[356465249,1742493042915,-500.0,0.00050899,120]
[356465250,1742493042924,-180890.41113491,0.000509,120]
[356465251,1742493042957,-1478.3758,0.00048899,2]
[356465252,1742493042969,-150.0,0.00050037,120]
[356465253,1742493042979,-57.0442,0.000509,120]
[356465254,1742493042991,-39920.4130709,0.000509,120]
[356465255,1742493043000,-151.0,0.000509,120]
[356465256,1742493043010,-154.995871,0.000509,120]
[356465257,1742493043019,-151.0,0.000509,120]
[356465258,1742493043028,-151.0,0.000509,120]
[356465259,1742493043037,-5000.00006428,0.000509,120]
[356465260,1742493043046,-151.0,0.000509,120]
[356465261,1742493043055,-151.0,0.000509,120]
[356465262,1742493043064,-151.0,0.000509,120]
[356465263,1742493043073,-151.0,0.000509,120]
[356465264,1742493043082,-219.724611,0.000509,120]
[356465265,1742493043091,-151.0,0.000509,120]
[356465266,1742493043100,-387.422034,0.000509,120]
[356465267,1742493043109,-387.422034,0.000509,120]
[356465268,1742493043118,-151.0,0.000509,120]
[356465269,1742493043127,-151.0,0.000509,120]
[356465270,1742493043136,-151.0,0.000509,120]
[356465271,1742493043147,-164.317067,0.000509,120]
[356465272,1742493043156,-151.0,0.000509,120]
[356465273,1742493043165,-152.222843,0.000509,120]
[356465274,1742493043177,-151.0,0.000509,120]
[356465275,1742493043186,-151.0,0.000509,120]
[356465276,1742493043195,-882.49604618,0.000509,2]
[356465277,1742493043204,-626.58,0.00050916,120]
[356465278,1742493043214,-915.73,0.00050917,120]
[356465279,1742493043223,-500.0,0.00050917,120]
[356465281,1742493043232,-515.96514916,0.00050917,120]
[356465282,1742493043242,-715.32,0.00050917,7]
[356465283,1742493043251,-500.0,0.00050917,120]
[356465284,1742493043260,-500.0,0.00050917,120]
[356465285,1742493043270,-1572.28,0.00050917,120]
[356465286,1742493043279,-500.59,0.00050917,120]
[356465288,1742493043289,-828.35,0.00050917,120]
[356465289,1742493043298,-882.57,0.00050917,120]
[356465290,1742493043307,-579.11,0.00050917,120]
[356465291,1742493043315,-1250.0,0.00050917,120]
[356465292,1742493043325,-749.43,0.00050917,120]
[356465293,1742493043334,-641.58,0.00050917,120]
[356465294,1742493043343,-609.1,0.00050917,120]
[356465295,1742493043352,-1000.0,0.00050917,120]
[356465296,1742493043361,-1600.66,0.00050917,120]
[356465297,1742493043370,-1598.9,0.00050917,120]
[356465298,1742493043379,-500.0,0.00050973,10]
[356465299,1742493043388,-500.0,0.00050999,120]
[356465300,1742493043397,-500.0,0.00050999,120]
[356465301,1742493043406,-500.0,0.00050999,120]
[356465302,1742493043415,-500.0,0.00050999,120]
[356465303,1742493043425,-500.0,0.00050999,120]
[356465304,1742493043434,-500.0,0.00050999,120]
[356465305,1742493043443,-233060.08596225,0.00051,120]
[356465306,1742493043457,-628157.15676807,0.00051,120]
[356465307,1742493043467,-757.20552183,0.00051,120]
[356465308,1742493043476,-500000.0,0.00051,120]
[356465309,1742493043485,-151.0,0.00051,120]
[356465310,1742493043493,-151.0,0.00051,120]
[356465311,1742493043502,-151.0,0.00051,120]
[356465312,1742493043511,-151.0,0.00051,120]
[356465313,1742493043523,-151.0,0.00051,120]
[356465314,1742493043532,-151.0,0.00051,120]
[356465315,1742493043541,-151.0,0.00051,120]
[356465316,1742493043550,-151.0,0.00051,120]
[356465317,1742493043560,-151.0,0.00051,120]
[356465318,1742493043569,-290.513564,0.00051,120]
[356465319,1742493043578,-387.422034,0.00051,120]
[356465320,1742493043588,-387.422034,0.00051,120]
[356465321,1742493043598,-387.422034,0.00051,120]
[356465322,1742493043608,-387.422034,0.00051,120]
[356465323,1742493043618,-151.0,0.00051,120]
[356465324,1742493043627,-151.0,0.00051,120]
[356465325,1742493043636,-151.0,0.00051,120]
[356465326,1742493043645,-151.0,0.00051,120]
[356465327,1742493043655,-151.0,0.00051,120]
[356465328,1742493043664,-151.0,0.00051,120]
[356465329,1742493043674,-151.0,0.00051,120]
[356465330,1742493043684,-151.0,0.00051,120]
[356465331,1742493043693,-151.272702,0.00051,120]
[356465332,1742493043703,-151.0,0.00051,120]
[356465333,1742493043712,-255.827118,0.00051,120]
[356465334,1742493043720,-500.0,0.00051133,120]
[356465335,1742493043729,-800.0,0.00051143,120]
[356465336,1742493043738,-626.58,0.0005119,120]
[356465337,1742493043748,-915.73,0.00051191,120]
[356465338,1742493043757,-500.0,0.00051191,120]
[356465339,1742493043766,-715.32,0.00051191,7]
[356465340,1742493043775,-500.0,0.00051191,120]
[356465341,1742493043785,-500.0,0.00051191,120]
[356465342,1742493043794,-1572.28,0.00051191,120]
[356465343,1742493043804,-500.59,0.00051191,120]
[356465344,1742493043813,-828.35,0.00051191,120]
[356465345,1742493043822,-882.57,0.00051191,120]
[356465346,1742493043831,-579.11,0.00051191,120]
[356465347,1742493043840,-1250.0,0.00051191,120]
[356465348,1742493043850,-749.43,0.00051191,120]
[356465349,1742493043859,-641.58,0.00051191,120]
[356465350,1742493043868,-1000.0,0.00051191,120]
[356465351,1742493043878,-1600.66,0.00051191,120]
[356465352,1742493043887,-1598.9,0.00051191,120]
[356465353,1742493043897,-303.10906072,0.00051407,120]
[356465354,1742493043906,-626.58,0.00051464,120]
[356465355,1742493043916,-915.73,0.00051465,120]
[356465356,1742493043926,-500.0,0.00051465,120]
[356465357,1742493043935,-715.32,0.00051465,7]
[356465358,1742493043944,-500.0,0.00051465,120]
[356465359,1742493043954,-500.0,0.00051465,120]
[356465360,1742493043965,-1572.28,0.00051465,120]
[356465361,1742493043975,-500.59,0.00051465,120]
[356465362,1742493043986,-828.35,0.00051465,120]
[356465363,1742493043997,-882.57,0.00051465,120]
[356465364,1742493044007,-579.11,0.00051465,120]
[356465365,1742493044016,-1250.0,0.00051465,120]
[356465366,1742493044025,-749.43,0.00051465,120]
[356465367,1742493044035,-641.58,0.00051465,120]
[356465368,1742493044043,-1000.0,0.00051465,120]
[356465369,1742493044052,-1600.66,0.00051465,120]
[356465370,1742493044062,-1598.9,0.00051465,120]
[356465371,1742493044071,-513.866579,0.00051652,120]
[356465372,1742493044080,-513.866579,0.00051665,120]
[356465373,1742493044090,-800.0,0.00051691,120]
[356465374,1742493044099,-626.58,0.00051738,120]
[356465375,1742493044108,-915.73,0.00051739,120]
[356465376,1742493044117,-500.0,0.00051739,120]
[356465377,1742493044128,-715.32,0.00051739,7]
[356465378,1742493044138,-500.0,0.00051739,120]
[356465379,1742493044148,-500.0,0.00051739,120]
[356465380,1742493044158,-1572.28,0.00051739,120]
[356465381,1742493044167,-500.59,0.00051739,120]
[356465382,1742493044178,-828.35,0.00051739,120]
[356465383,1742493044187,-882.57,0.00051739,120]
[356465384,1742493044197,-579.11,0.00051739,120]
[356465385,1742493044206,-1250.0,0.00051739,120]
[356465386,1742493044216,-749.43,0.00051739,120]
[356465387,1742493044225,-641.58,0.00051739,120]
[356465388,1742493044234,-1000.0,0.00051739,120]
[356465389,1742493044244,-1600.66,0.00051739,120]
[356465390,1742493044253,-1598.9,0.00051739,120]
[356465391,1742493044263,-513.866579,0.00051843,120]
[356465392,1742493044273,-150.04,0.00051929,2]
[356465393,1742493044283,-513.866579,0.00051932,120]
[356465394,1742493044292,-500.0,0.00051999,120]
[356465395,1742493044302,-500.0,0.00051999,120]
[356465396,1742493044311,-500.0,0.00051999,120]
[356465397,1742493044320,-500.0,0.00051999,120]
[356465398,1742493044329,-500.0,0.00051999,120]
[356465399,1742493044338,-50000.0,0.00052,52]
[356465400,1742493044348,-324008.7749156,0.00052,120]
[356465401,1742493044435,-2767.83726989,0.00052,120]
[356465407,1742493045968,-2139.0,0.00052,7]
[356465408,1742493045978,-68037.81814759,0.00052,120]
[356465409,1742493046283,-605185.56966692,0.00052,120]
[356465410,1742493046293,-151.0,0.00052,120]
[356465411,1742493046303,-151.0,0.00052,120]
[356465412,1742493046312,-151.0,0.00052,120]
[356465413,1742493046322,-387.422034,0.00052,120]
[356465414,1742493046332,-387.422034,0.00052,120]
[356465415,1742493046341,-151.0,0.00052,120]
[356465416,1742493046352,-151.0,0.00052,120]
[356465417,1742493046361,-151.0,0.00052,120]
[356465418,1742493046371,-151.0,0.00052,120]
[356465419,1742493046381,-626.58,0.00052012,120]
[356465420,1742493046391,-915.73,0.00052013,120]
[356465421,1742493046400,-500.0,0.00052013,120]
[356465422,1742493046410,-715.32,0.00052013,7]
[356465423,1742493046420,-500.0,0.00052013,120]
[356465424,1742493046429,-496.3832,0.00052013,120]
[356465425,1742493046439,-1572.28,0.00052013,120]
[356465426,1742493046449,-500.59,0.00052013,120]
[356465427,1742493046459,-828.35,0.00052013,120]
[356465428,1742493046468,-882.57,0.00052013,120]
[356465429,1742493046478,-579.11,0.00052013,120]
[356465430,1742493046487,-1250.0,0.00052013,120]
[356465431,1742493046497,-749.43,0.00052013,120]
[356465432,1742493046506,-641.58,0.00052013,120]
[356465433,1742493046516,-1000.0,0.00052013,120]
[356465434,1742493046528,-1600.66,0.00052013,120]
[356465436,1742493046538,-1598.9,0.00052013,120]
[356465437,1742493046548,-800.0,0.00052239,120]
[356465438,1742493046557,-626.58,0.00052286,120]
[356465440,1742493046568,-915.73,0.00052287,120]
[356465442,1742493046577,-500.0,0.00052287,120]
[356465444,1742493046587,-715.32,0.00052287,7]
[356465446,1742493046596,-500.0,0.00052287,120]
[356465448,1742493046606,-1572.28,0.00052287,120]
[356465450,1742493046615,-500.59,0.00052287,120]
[356465452,1742493046624,-828.35,0.00052287,120]
[356465454,1742493046634,-882.57,0.00052287,120]
[356465456,1742493046643,-579.11,0.00052287,120]
[356465458,1742493046653,-1250.0,0.00052287,120]
[356465460,1742493046662,-749.43,0.00052287,120]
[356465462,1742493046672,-641.58,0.00052287,120]
[356465464,1742493046682,-1000.0,0.00052287,120]
[356465466,1742493046691,-1600.66,0.00052287,120]
[356465468,1742493046701,-1598.9,0.00052287,120]
[356465470,1742493046711,-501.988,0.00052499,120]
[356465472,1742493046721,-1000000.0,0.000525,120]
[356465474,1742493046731,-151.0,0.000525,120]
[356465476,1742493046740,-387.422034,0.000525,120]
[356465478,1742493046749,-387.422034,0.000525,120]
[356465479,1742493046758,-151.0,0.000525,120]
[356465481,1742493046769,-151.0,0.000525,120]
[356465484,1742493046779,-151.0,0.000525,120]
[356465486,1742493046789,-626.58,0.0005256,120]
[356465487,1742493046799,-915.73,0.00052561,120]
[356465489,1742493046808,-500.0,0.00052561,120]
[356465491,1742493046818,-715.32,0.00052561,7]
[356465494,1742493046828,-500.0,0.00052561,120]
[356465495,1742493046838,-1572.28,0.00052561,120]
[356465498,1742493046848,-500.59,0.00052561,120]
[356465499,1742493046857,-828.35,0.00052561,120]
[356465502,1742493046866,-882.57,0.00052561,120]
[356465504,1742493046876,-579.11,0.00052561,120]
[356465505,1742493046886,-1250.0,0.00052561,120]
[356465507,1742493046895,-749.43,0.00052561,120]
[356465509,1742493046904,-641.58,0.00052561,120]
[356465511,1742493046914,-1000.0,0.00052561,120]
[356465513,1742493046923,-1600.66,0.00052561,120]
[356465515,1742493046933,-1598.9,0.00052561,120]
[356465517,1742493046943,-425.98,0.000527,46]
[356465519,1742493046952,-800.0,0.00052787,120]
[356465521,1742493046961,-626.58,0.00052834,120]
[356465523,1742493046971,-915.73,0.00052835,120]
[356465525,1742493046980,-500.0,0.00052835,120]
[356465527,1742493046989,-715.32,0.00052835,7]
[356465529,1742493046999,-500.0,0.00052835,120]
[356465531,1742493047008,-1572.28,0.00052835,120]
[356465533,1742493047018,-500.59,0.00052835,120]
[356465535,1742493047028,-828.35,0.00052835,120]
[356465537,1742493047038,-882.57,0.00052835,120]
[356465539,1742493047047,-579.11,0.00052835,120]
[356465541,1742493047057,-1250.0,0.00052835,120]
[356465543,1742493047066,-749.43,0.00052835,120]
[356465545,1742493047076,-641.58,0.00052835,120]
[356465547,1742493047085,-1000.0,0.00052835,120]
[356465549,1742493047094,-1600.66,0.00052835,120]
[356465551,1742493047104,-1598.9,0.00052835,120]
[356465554,1742493047115,-232.7,0.00052907,2]